{"text_format":"3","workbook":"xlsx","n_sheets":1,"sheets":["Bid Form - Crockett St & Crestf"],"not_rendered":{"defined_names":1},"read":"whole","date_system":"1900"}

{"sheet":"Bid Form - Crockett St & Crestf","index":0,"n_rows":62,"n_cols":11,"rows_kept":62,"merged":[[0,5,6,6],[1,0,1,4],[2,0,2,4],[2,7,5,10],[3,0,3,4],[4,0,4,4],[5,0,5,4],[6,0,6,4],[6,7,6,10],[7,0,7,10],[8,0,8,10],[9,0,9,3],[9,5,9,10],[10,0,10,10],[11,0,11,3],[11,4,12,10],[12,0,12,3],[13,0,13,10],[14,0,14,10],[15,0,15,10],[16,0,16,4],[16,5,16,7],[16,9,18,10],[17,0,17,2],[17,4,17,7],[18,0,18,1],[18,2,18,7],[19,1,19,7],[20,0,20,1],[20,2,20,7],[20,9,20,10],[21,1,21,4],[21,7,21,10],[22,1,22,4],[22,7,22,10],[23,0,24,4],[23,6,24,10],[25,0,25,4],[25,6,25,10],[26,0,26,5],[26,6,26,10],[27,0,28,10],[29,0,29,10],[30,0,30,10],[33,5,33,8],[35,0,35,10],[36,1,36,4],[36,7,36,8],[36,9,36,10],[37,1,37,4],[37,7,37,8],[37,9,37,10],[38,1,38,4],[38,7,38,8],[38,9,38,10],[39,1,39,4],[39,7,39,8],[39,9,39,10],[40,1,40,4],[40,7,40,8],[40,9,40,10],[41,1,41,4],[41,7,41,8],[41,9,41,10],[42,1,42,4],[42,7,42,8],[42,9,42,10],[43,1,43,4],[43,7,43,8],[43,9,43,10],[44,1,44,4],[44,7,44,8],[44,9,44,10],[45,1,45,4],[45,7,45,8],[45,9,45,10],[46,1,46,4],[46,7,46,8],[46,9,46,10],[47,1,47,4],[47,7,47,8],[47,9,47,10],[48,1,48,4],[48,7,48,8],[48,9,48,10],[49,1,49,4],[49,7,49,8],[49,9,49,10],[50,1,50,4],[50,7,50,8],[50,9,50,10],[51,1,51,4],[51,7,51,8],[51,9,51,10],[52,1,52,4],[52,7,52,8],[52,9,52,10],[53,1,53,4],[53,7,53,8],[53,9,53,10],[54,1,54,4],[54,7,54,8],[54,9,54,10],[55,1,55,4],[55,7,55,8],[55,9,55,10],[56,1,56,4],[56,7,56,8],[56,9,56,10],[57,1,57,4],[57,7,57,8],[57,9,57,10],[58,1,58,4],[58,7,58,8],[58,9,58,10],[59,1,59,4],[59,7,59,8],[59,9,59,10],[60,1,60,4],[60,7,60,8],[60,9,60,10],[61,0,61,8],[61,9,61,10]]}
["SOLICITATION, OFFER, AND BID FORM",{"$nulls":9},"ESCAMBIA COUNTY, FLORIDA"]
["Submit offers to:",{"$nulls":7},"Invitation to Bid"]
["Emily Weddington, CPPB 850-595-4987",{"$nulls":6},"Crockett Street & Crestfield Circle Drainage Improvements, Phase I"]
["Purchasing Coordinator "]
["Office of Purchasing, 2nd Floor, Room 11.101"]
["213 Palafox Place, Pensacola, FL  32502"]
["or P.O. Box 1591, Pensacola, FL 32591-1591",{"$nulls":6},"Solicitation Number PD 18-19.011"]
["SOLICITATION"]
["Mailing Date:  January 7, 2019"]
["Pre-Solicitation Conference: A",{"$nulls":3},"Non-Mandatory","Pre-Solicitation Conference will be held in the Office of "]
["Purchasing Conference Room, 11.407, at 10:00 a.m., CST on January 22, 2019."]
["Offers Will Be Received Until:",{"$nulls":3},"2:00 p.m., CST on February 6, 2019, and may not be withdrawn within 90 days after such date and time."]
[]
["POSTING OF SOLICITATION TABULATIONS"]
["Solicitation tabulations with Recommended Awards will be posted for review by interested parties at the Escambia County Office of Purchasing, and will remain posted for a period of two (2) business days.  Failure to file a protest in writing within two (2) business days after posting of the soliciation tabulation shall constitute a waiver of any protest relating to this soliciation.  All protests must be filed with the Escambia County Office of Purchasing.  Protests will be handled according to Escambia County Purchasing Ordinance."]
["OFFER (shall be completed by Offeror)"]
["Federal Employer ID Number or S.S. Number:",{"$nulls":8},"Terms of Payment\nSee Special Terms & Conditions Item #11"]
["Delivery Date will be ",{"$nulls":3},"days after receipt of Purchase Order"]
["Vendor Name:"]
["Address:",{"$nulls":9},"Bid Bond Attached"]
["City, State, Zip:",{"$nulls":7},"$"]
["Phone:",{"$nulls":5},"Toll Free:"]
["Fax:",{"$nulls":5},"Contact:"]
[]
[]
["Name & Title of Person Authorized to Sign Offer",{"$nulls":5},"* Signature of Person Authorized to Sign Offer"]
[{"$nulls":6},"(Original Signature Required)"]
["* Failure to execute this Form binding the bidder/proposer's offer shall result in the bid/proposal being rejected as non-responsive."]
[]
["I certify that this offer is made without prior understanding, agreement, or connection, with any Corporation, firm or person submitting an offer for the same materials, supplies, or equipment, and is in all respects fair and without collusion or fraud.  I agree to abide by all conditions of this offer and certify that I am authorized to sign this offer for the Offeror and that the Offeror is in compliance with all requirements of the solicitation, including but not limited to certification requirements.  In submitting an offer to Escambia County Florida, the Offeror agrees that if the offer is accepted, the Offeror will convey, sell, assign or transfer to Escambia County Florida all rights title and interest in and to all causes of action it may now or hereafter acquire under the Anti-trust laws of the United States and the State of Florida for price fixing relating to the particular commodities or services purchase or acquired by Escambia County Florida.  At the County’s discretion, such assignment shall be made and become effective at the time the County tenders final payment to the Offeror."]
["BID FORM"]
[]
[]
[{"$nulls":4},"Bid Total:    ",{"$f":"J62","v":0}]
[]
["Bid Form - PD 18-19.011, Crockett Street & Crestfield Circle Drainage Improvements, Phase I"]
["Bid Item No.","Bid Item Description",{"$nulls":3},"Quantity","Unit","Unit Price",null,"Extension"]
[1,"Mobilization",{"$nulls":3},1,"LS",null,null,{"$f":"F38*H38","v":0}]
[2,"Maintenance of Traffic",{"$nulls":3},1,"LS",null,null,{"$f":"F39*H39","v":0}]
[3,"Clearing and Grubbing ",{"$nulls":3},5,"AC",null,null,0]
[4,"Remove and Replace Hogwire Fence",{"$nulls":3},22,"LF",null,null,0]
[5,"Earthwork Excavation by Machine",{"$nulls":3},28236,"CY",null,null,0]
[6,"Earthwork Excavate, Haul, and Install, On-site",{"$nulls":3},3700,"CY",null,null,0]
[7,"18\" MES 1:4",{"$nulls":3},2,"EA",null,null,0]
[8,"FDOT Type D Inlet w/traversable slot",{"$nulls":3},2,"EA",null,null,0]
[9,"FDOT Type P8 Manhole",{"$nulls":3},2,"EA",null,null,0]
[10,"FDOT U Type Endwall Energy Dissipator 30\" RCP, Class I Concrete",{"$nulls":3},7,"CY",null,null,0]
[11,"FDOT U Type Endwall Energy Dissipator 42\" RCP, Class I Concrete",{"$nulls":3},15,"CY",null,null,0]
[12,"FDOT Type G Ditch Bottom Inlet",{"$nulls":3},1,"EA",null,null,{"$f":"F49*H49","v":0}]
[13,"18\" RCP",{"$nulls":3},236,"LF",null,null,0]
[14,"24\" RCP",{"$nulls":3},286,"LF",null,null,0]
[15,"30\" RCP",{"$nulls":3},99,"LF",null,null,0]
[16,"42\" RCP",{"$nulls":3},88,"LF",null,null,0]
[17,"Fiber Reinforced Concrete Ditch Paving w/o Weep Holes, Min 3\" Thick",{"$nulls":3},907,"SY",null,null,{"$f":"F54*H54","v":0}]
[18,"Tied Concrete Block Mat",{"$nulls":3},190,"SY",null,null,{"$f":"F55*H55","v":0}]
[19,"Install 6' Wood Privacy Fence",{"$nulls":3},125,"LF",null,null,{"$f":"F56*H56","v":0}]
[20,"Silt Fence",{"$nulls":3},3500,"LF",null,null,{"$f":"F57*H57","v":0}]
[21,"Rip Rap",{"$nulls":3},110,"SY",null,null,{"$f":"F58*H58","v":0}]
[22,"Topsoil",{"$nulls":3},16010,"SY",null,null,{"$f":"F59*H59","v":0}]
[23,"Argentine Bahia, Seeding and Mulch (70lb Per Acre)",{"$nulls":3},247,"LB",null,null,{"$f":"F60*H60","v":0}]
[24,"Argentine Bahia Sod, Staked, over 1000sy",{"$nulls":3},11000,"SY",null,null,{"$f":"F61*H61","v":0}]
["Bid Total:",{"$nulls":8},{"$f":"SUM(J38:K61)","v":0}]